[Event "Early-Titled-Tuesday-Blitz-January-16-2024"]
[Site "Chess.com"]
[Date "2024.01.16"]
[Round "7"]
[White "Buzhizhebuguai"]
[Black "WhiteKnight2612"]
[Result "1/2-1/2"]
[WhiteElo "2676"]
[BlackElo "2864"]
[TimeControl "180+1"]
[EndTime "9:23:31 PST"]
[Termination "Game drawn by stalemate"]

1. Nf3 {[%clk 0:03:00.9]} 1... Nf6 {[%clk 0:02:55.1]} 2. g3 {[%clk 0:03:01.2]}
2... g6 {[%clk 0:02:55.9]} 3. b3 {[%clk 0:03:01.1]} 3... Bg7 {[%clk 0:02:56.8]}
4. Bb2 {[%clk 0:03:02]} 4... O-O {[%clk 0:02:57.7]} 5. Bg2 {[%clk 0:03:02.5]}
5... b6 {[%clk 0:02:58.5]} 6. O-O {[%clk 0:03:01.6]} 6... Bb7 {[%clk 0:02:59.1]}
7. c4 {[%clk 0:03:02.5]} 7... c5 {[%clk 0:02:59.4]} 8. Nc3 {[%clk 0:03:03.1]}
8... Nc6 {[%clk 0:02:59]} 9. d4 {[%clk 0:03:03.1]} 9... Nxd4 {[%clk 0:02:59.3]}
10. Nxd4 {[%clk 0:03:03.3]} 10... Bxg2 {[%clk 0:02:59.9]} 11. Kxg2 {[%clk
0:03:04.2]} 11... cxd4 {[%clk 0:02:59.8]} 12. Qxd4 {[%clk 0:03:05.1]} 12... d6
{[%clk 0:02:59.7]} 13. e4 {[%clk 0:03:05.4]} 13... Qc7 {[%clk 0:02:56.6]} 14.
Rac1 {[%clk 0:03:02.5]} 14... Qb7 {[%clk 0:02:56]} 15. Nd5 {[%clk 0:02:52.8]}
15... Ne8 {[%clk 0:02:43.1]} 16. Qd2 {[%clk 0:02:52.5]} 16... Bxb2 {[%clk
0:02:29.6]} 17. Qxb2 {[%clk 0:02:53.4]} 17... e6 {[%clk 0:02:30.2]} 18. Nc3
{[%clk 0:02:53.6]} 18... f5 {[%clk 0:02:30.8]} 19. f3 {[%clk 0:02:51.7]} 19...
Rd8 {[%clk 0:02:25.7]} 20. Rcd1 {[%clk 0:02:49.4]} 20... fxe4 {[%clk 0:02:20.8]}
21. Nxe4 {[%clk 0:02:49.2]} 21... d5 {[%clk 0:02:20.5]} 22. cxd5 {[%clk
0:02:47.7]} 22... Rxd5 {[%clk 0:02:15.5]} 23. Qc3 {[%clk 0:02:39.4]} 23... h6
{[%clk 0:02:07.3]} 24. h4 {[%clk 0:02:34.3]} 24... Kh7 {[%clk 0:02:05.9]} 25.
Rfe1 {[%clk 0:02:26.6]} 25... Qf7 {[%clk 0:02:02.9]} 26. Rxd5 {[%clk 0:02:15]}
26... exd5 {[%clk 0:01:58.7]} 27. Nf2 {[%clk 0:02:15.5]} 27... Ng7 {[%clk
0:01:54.6]} 28. Ng4 {[%clk 0:02:09.6]} 28... Nf5 {[%clk 0:01:52.3]} 29. Ne5
{[%clk 0:02:06.8]} 29... Qg7 {[%clk 0:01:51.1]} 30. Qd3 {[%clk 0:02:04.5]} 30...
d4 {[%clk 0:01:41.6]} 31. h5 {[%clk 0:01:48.8]} 31... gxh5 {[%clk 0:01:36.3]}
32. g4 {[%clk 0:01:49]} 32... hxg4 {[%clk 0:01:36.1]} 33. fxg4 {[%clk
0:01:48.8]} 33... Kh8 {[%clk 0:01:36.8]} 34. Kh3 {[%clk 0:01:42]} 34... Ne7
{[%clk 0:01:32.6]} 35. Qxd4 {[%clk 0:01:39]} 35... Qf6 {[%clk 0:01:19.6]} 36.
Kg2 {[%clk 0:00:53.8]} 36... Kg7 {[%clk 0:01:12.2]} 37. Nf3 {[%clk 0:00:48.7]}
37... Ng6 {[%clk 0:00:58]} 38. Qxf6+ {[%clk 0:00:46.1]} 38... Kxf6 {[%clk
0:00:58.9]} 39. Kg3 {[%clk 0:00:43.2]} 39... Rc8 {[%clk 0:00:59.5]} 40. Re2
{[%clk 0:00:43.1]} 40... Rc3 {[%clk 0:00:58.9]} 41. Kf2 {[%clk 0:00:39.4]} 41...
Nf4 {[%clk 0:00:58.3]} 42. Rd2 {[%clk 0:00:39.7]} 42... Nd3+ {[%clk 0:00:57]}
43. Kf1 {[%clk 0:00:33.8]} 43... Nc5 {[%clk 0:00:54.2]} 44. Ke2 {[%clk
0:00:29.4]} 44... Ne4 {[%clk 0:00:51.3]} 45. Rd4 {[%clk 0:00:29]} 45... Nc5
{[%clk 0:00:42.2]} 46. Rd6+ {[%clk 0:00:26.2]} 46... Kg7 {[%clk 0:00:40.8]} 47.
Nd4 {[%clk 0:00:22.7]} 47... Rh3 {[%clk 0:00:39.9]} 48. Nf5+ {[%clk 0:00:22.6]}
48... Kh7 {[%clk 0:00:39.9]} 49. Rc6 {[%clk 0:00:22.2]} 49... Ne4 {[%clk
0:00:33.3]} 50. b4 {[%clk 0:00:20.7]} 50... Nc3+ {[%clk 0:00:31.3]} 51. Kf2
{[%clk 0:00:20.4]} 51... Nxa2 {[%clk 0:00:31.8]} 52. b5 {[%clk 0:00:20.1]} 52...
Nb4 {[%clk 0:00:31]} 53. Kg2 {[%clk 0:00:20]} 53... Nxc6 {[%clk 0:00:30.1]} 54.
Kxh3 {[%clk 0:00:20.2]} 54... Ne5 {[%clk 0:00:27]} 55. Nd6 {[%clk 0:00:17.9]}
55... Kg6 {[%clk 0:00:23.2]} 56. Nc8 {[%clk 0:00:18.1]} 56... Kg5 {[%clk
0:00:23.9]} 57. Nxa7 {[%clk 0:00:18.4]} 57... Nxg4 {[%clk 0:00:24.5]} 58. Nc8
{[%clk 0:00:18.3]} 58... Nf2+ {[%clk 0:00:25.1]} 59. Kg2 {[%clk 0:00:18.2]}
59... Ne4 {[%clk 0:00:25.8]} 60. Nxb6 {[%clk 0:00:18.5]} 60... Nc3 {[%clk
0:00:26.4]} 61. Nc4 {[%clk 0:00:16.5]} 61... Nxb5 {[%clk 0:00:27.3]} 62. Nd2
{[%clk 0:00:16.7]} 62... h5 {[%clk 0:00:28.2]} 63. Nf3+ {[%clk 0:00:17]} 63...
Kg4 {[%clk 0:00:28.6]} 64. Ne5+ {[%clk 0:00:16.9]} 64... Kf4 {[%clk 0:00:29.5]}
65. Ng6+ {[%clk 0:00:16.9]} 65... Kg5 {[%clk 0:00:30.4]} 66. Ne5 {[%clk
0:00:16.5]} 66... Nd4 {[%clk 0:00:31.1]} 67. Nf3+ {[%clk 0:00:16]} 67... Nxf3
{[%clk 0:00:31.8]} 68. Kxf3 {[%clk 0:00:16.5]} 68... h4 {[%clk 0:00:32.1]} 69.
Kg2 {[%clk 0:00:17]} 69... Kg4 {[%clk 0:00:33]} 70. Kh2 {[%clk 0:00:17.5]} 70...
h3 {[%clk 0:00:33.9]} 71. Kh1 {[%clk 0:00:18.4]} 71... Kg3 {[%clk 0:00:34.8]}
72. Kg1 {[%clk 0:00:19.1]} 72... h2+ {[%clk 0:00:35.7]} 73. Kh1 {[%clk 0:00:20]}
73... Kh3 {[%clk 0:00:34.4]} 1/2-1/2

[Event "Early-Titled-Tuesday-Blitz-January-16-2024"]
[Site "Chess.com"]
[Date "2024.01.16"]
[Round "7"]
[White "Egor_Koshulyan"]
[Black "Fandorine"]
[Result "1-0"]
[WhiteElo "2704"]
[BlackElo "2967"]
[TimeControl "180+1"]
[EndTime "9:23:35 PST"]
[Termination "Egor_Koshulyan won by resignation"]

1. e4 {[%clk 0:03:00.9]} 1... e5 {[%clk 0:03:00.7]} 2. Nf3 {[%clk 0:02:59.8]}
2... Nc6 {[%clk 0:03:01.4]} 3. c3 {[%clk 0:03:00.2]} 3... d5 {[%clk 0:02:57.2]}
4. exd5 {[%clk 0:03:01.1]} 4... Qxd5 {[%clk 0:02:56.8]} 5. d4 {[%clk 0:03:02]}
5... exd4 {[%clk 0:02:51]} 6. cxd4 {[%clk 0:03:02.9]} 6... Nf6 {[%clk 0:02:51]}
7. Nc3 {[%clk 0:03:03.3]} 7... Bb4 {[%clk 0:02:51.4]} 8. Be2 {[%clk 0:03:02.4]}
8... O-O {[%clk 0:02:46.3]} 9. O-O {[%clk 0:03:02.8]} 9... Bxc3 {[%clk
0:02:46.3]} 10. bxc3 {[%clk 0:03:03.7]} 10... Bg4 {[%clk 0:02:46.7]} 11. Be3
{[%clk 0:02:18.1]} 11... Rfe8 {[%clk 0:02:23.1]} 12. c4 {[%clk 0:01:47.6]} 12...
Qf5 {[%clk 0:02:01.5]} 13. Rb1 {[%clk 0:01:42.2]} 13... Ne4 {[%clk 0:01:35.2]}
14. Qc2 {[%clk 0:01:31]} 14... Nd6 {[%clk 0:01:09.3]} 15. Bd3 {[%clk 0:01:27]}
15... Qh5 {[%clk 0:01:08.7]} 16. Ng5 {[%clk 0:01:16.5]} 16... h6 {[%clk
0:01:09.1]} 17. Ne4 {[%clk 0:01:14.3]} 17... Nxe4 {[%clk 0:00:58.6]} 18. Bxe4
{[%clk 0:01:15.2]} 18... Rxe4 {[%clk 0:00:58.9]} 19. Qxe4 {[%clk 0:01:13.7]}
19... Bf5 {[%clk 0:00:59.4]} 20. Rb5 {[%clk 0:00:57]} 20... Bxe4 {[%clk
0:00:42.8]} 21. Rxh5 {[%clk 0:00:57]} 21... b6 {[%clk 0:00:43.5]} 22. Rb5 {[%clk
0:00:35.1]} 22... Rd8 {[%clk 0:00:26.4]} 23. Rd1 {[%clk 0:00:30.7]} 23... Na5
{[%clk 0:00:24.9]} 24. c5 {[%clk 0:00:27.2]} 24... Bc6 {[%clk 0:00:24]} 25. Rbb1
{[%clk 0:00:23.2]} 25... Nc4 {[%clk 0:00:19.1]} 26. Rdc1 {[%clk 0:00:20.4]}
26... Bd5 {[%clk 0:00:16]} 27. a4 {[%clk 0:00:17.3]} 27... Re8 {[%clk
0:00:08.8]} 28. Rc3 {[%clk 0:00:16.9]} 28... a6 {[%clk 0:00:07.4]} 29. cxb6
{[%clk 0:00:14.9]} 29... cxb6 {[%clk 0:00:07.7]} 30. Rb4 {[%clk 0:00:15.2]}
30... Rc8 {[%clk 0:00:07.8]} 31. h3 {[%clk 0:00:13.7]} 31... Rc6 {[%clk
0:00:07.6]} 32. Kh2 {[%clk 0:00:11.8]} 32... f6 {[%clk 0:00:08.2]} 33. Rb1
{[%clk 0:00:10.7]} 33... Kf7 {[%clk 0:00:08.8]} 34. Bf4 {[%clk 0:00:10.2]} 34...
Ke6 {[%clk 0:00:08.4]} 35. Re1+ {[%clk 0:00:10.1]} 35... Kd7 {[%clk 0:00:08.6]}
36. Rc2 {[%clk 0:00:10.6]} 36... g5 {[%clk 0:00:08.4]} 37. Bg3 {[%clk
0:00:10.2]} 37... h5 {[%clk 0:00:07.8]} 38. h4 {[%clk 0:00:10.1]} 38... g4
{[%clk 0:00:08]} 39. Rce2 {[%clk 0:00:10.1]} 39... Re6 {[%clk 0:00:06.5]} 40.
Rxe6 {[%clk 0:00:04.7]} 40... Bxe6 {[%clk 0:00:07.4]} 41. f3 {[%clk 0:00:05.6]}
41... gxf3 {[%clk 0:00:06.7]} 42. gxf3 {[%clk 0:00:06.5]} 42... b5 {[%clk
0:00:06.9]} 43. axb5 {[%clk 0:00:06.4]} 43... axb5 {[%clk 0:00:07.8]} 44. Rb1
{[%clk 0:00:05.4]} 44... Kc6 {[%clk 0:00:08.3]} 45. Be1 {[%clk 0:00:06]} 45...
Bd5 {[%clk 0:00:06.1]} 46. Kg3 {[%clk 0:00:06]} 46... Nd6 {[%clk 0:00:06.8]} 47.
Kf4 {[%clk 0:00:05.8]} 47... Bc4 {[%clk 0:00:04.8]} 48. Bb4 {[%clk 0:00:06.1]}
48... Nc8 {[%clk 0:00:02]} 49. Rc1 {[%clk 0:00:04.9]} 49... Nb6 {[%clk 0:00:02]}
50. Kf5 {[%clk 0:00:04.6]} 50... Nd7 {[%clk 0:00:02.7]} 51. Be7 {[%clk
0:00:04.4]} 51... Kd5 {[%clk 0:00:03.2]} 52. Bxf6 {[%clk 0:00:04.1]} 52... b4
{[%clk 0:00:03.9]} 53. Be7 {[%clk 0:00:04.1]} 53... b3 {[%clk 0:00:04.2]} 54.
Ba3 {[%clk 0:00:04.8]} 54... Nb8 {[%clk 0:00:03.6]} 55. Kg5 {[%clk 0:00:05.1]}
55... Nc6 {[%clk 0:00:04.1]} 56. Kxh5 {[%clk 0:00:04]} 56... Nxd4 {[%clk
0:00:04.4]} 57. f4 {[%clk 0:00:03.8]} 57... Bd3 {[%clk 0:00:03.6]} 58. Bb2
{[%clk 0:00:02.1]} 58... Nc2 {[%clk 0:00:02.9]} 59. Rd1 {[%clk 0:00:01.8]} 59...
Ke4 {[%clk 0:00:03.5]} 60. Kg5 {[%clk 0:00:02.3]} 60... Be2 {[%clk 0:00:02.9]}
61. Re1 {[%clk 0:00:02.8]} 61... Kf3 {[%clk 0:00:02.8]} 62. Rc1 {[%clk
0:00:02.6]} 62... Bd3 {[%clk 0:00:02.7]} 63. f5 {[%clk 0:00:03.1]} 63... Ne3
{[%clk 0:00:03]} 64. f6 {[%clk 0:00:03.7]} 1-0

[Event "Early-Titled-Tuesday-Blitz-January-16-2024"]
[Site "Chess.com"]
[Date "2024.01.16"]
[Round "7"]
[White "PolandHussars"]
[Black "Rodalquilar"]
[Result "1-0"]
[WhiteElo "2609"]
[BlackElo "2770"]
[TimeControl "180+1"]
[EndTime "9:23:42 PST"]
[Termination "PolandHussars won on time"]

1. e4 {[%clk 0:03:00.9]} 1... d5 {[%clk 0:03:00]} 2. exd5 {[%clk 0:03:00.6]}
2... Qxd5 {[%clk 0:03:00.9]} 3. Nc3 {[%clk 0:03:00.5]} 3... Qa5 {[%clk
0:03:01.1]} 4. g3 {[%clk 0:03:00.7]} 4... Nf6 {[%clk 0:03:00.5]} 5. Bg2 {[%clk
0:03:01.1]} 5... e5 {[%clk 0:03:01]} 6. d3 {[%clk 0:03:01.1]} 6... c6 {[%clk
0:02:58.2]} 7. Nf3 {[%clk 0:02:58.1]} 7... Bd6 {[%clk 0:02:58.1]} 8. O-O {[%clk
0:02:58.3]} 8... O-O {[%clk 0:02:58.6]} 9. Re1 {[%clk 0:02:58.8]} 9... h6 {[%clk
0:02:52.2]} 10. h3 {[%clk 0:02:58.8]} 10... Bf5 {[%clk 0:02:29.6]} 11. Bd2
{[%clk 0:02:51.9]} 11... Qc7 {[%clk 0:02:29.3]} 12. Ne4 {[%clk 0:02:46.5]} 12...
Nxe4 {[%clk 0:02:27.5]} 13. dxe4 {[%clk 0:02:47.4]} 13... Be6 {[%clk 0:02:27.9]}
14. Bc3 {[%clk 0:02:46.9]} 14... Nd7 {[%clk 0:02:26.4]} 15. Qd2 {[%clk
0:02:40.3]} 15... Rad8 {[%clk 0:02:19.9]} 16. Rad1 {[%clk 0:02:38]} 16... Nb6
{[%clk 0:02:14.2]} 17. b3 {[%clk 0:02:18.8]} 17... Bb4 {[%clk 0:02:02.3]} 18.
Qe3 {[%clk 0:02:15.7]} 18... Bxc3 {[%clk 0:02:01.4]} 19. Qxc3 {[%clk 0:02:14.2]}
19... f6 {[%clk 0:01:42.4]} 20. Qa5 {[%clk 0:01:57.5]} 20... a6 {[%clk
0:01:37.3]} 21. Bf1 {[%clk 0:01:50.7]} 21... Na8 {[%clk 0:01:32.4]} 22. Qc3
{[%clk 0:01:43]} 22... Qe7 {[%clk 0:01:27.8]} 23. Bc4 {[%clk 0:01:41.7]} 23...
Nc7 {[%clk 0:01:27.5]} 24. Nh4 {[%clk 0:01:36.7]} 24... Bxc4 {[%clk 0:01:20.1]}
25. Qxc4+ {[%clk 0:01:24.7]} 25... Qf7 {[%clk 0:01:19.1]} 26. Qxf7+ {[%clk
0:01:02.4]} 26... Kxf7 {[%clk 0:01:19.3]} 27. Nf5 {[%clk 0:01:03.1]} 27... Nb5
{[%clk 0:01:19.2]} 28. a4 {[%clk 0:00:36.1]} 28... Nd4 {[%clk 0:01:19.2]} 29.
Nxd4 {[%clk 0:00:33.3]} 29... Rxd4 {[%clk 0:01:13]} 30. Rxd4 {[%clk 0:00:32.5]}
30... exd4 {[%clk 0:01:13.5]} 31. f4 {[%clk 0:00:30]} 31... Ke6 {[%clk
0:01:10.3]} 32. e5 {[%clk 0:00:26]} 32... Rd8 {[%clk 0:01:03.9]} 33. exf6+
{[%clk 0:00:25.8]} 33... Kxf6 {[%clk 0:01:04.2]} 34. Rd1 {[%clk 0:00:22.8]}
34... c5 {[%clk 0:00:53.9]} 35. Kf2 {[%clk 0:00:22.9]} 35... Re8 {[%clk
0:00:51.7]} 36. b4 {[%clk 0:00:17.6]} 36... b6 {[%clk 0:00:31]} 37. a5 {[%clk
0:00:17.7]} 37... cxb4 {[%clk 0:00:31.5]} 38. axb6 {[%clk 0:00:18]} 38... Rb8
{[%clk 0:00:31.6]} 39. Rxd4 {[%clk 0:00:18.3]} 39... Rxb6 {[%clk 0:00:32]} 40.
Ke3 {[%clk 0:00:18.8]} 40... a5 {[%clk 0:00:31.8]} 41. Rd5 {[%clk 0:00:18.7]}
41... a4 {[%clk 0:00:30.1]} 42. Ra5 {[%clk 0:00:18.8]} 42... a3 {[%clk
0:00:30.2]} 43. Kd4 {[%clk 0:00:19.3]} 43... Rc6 {[%clk 0:00:30.4]} 44. Ra4
{[%clk 0:00:18.8]} 44... Rxc2 {[%clk 0:00:23.9]} 45. Rxb4 {[%clk 0:00:19.2]}
45... a2 {[%clk 0:00:24.5]} 46. Ra4 {[%clk 0:00:19.6]} 46... Rh2 {[%clk
0:00:16.3]} 47. Ra6+ {[%clk 0:00:19.3]} 47... Kf5 {[%clk 0:00:13]} 48. Ra5+
{[%clk 0:00:18.6]} 48... Kg6 {[%clk 0:00:12.8]} 49. Ra6+ {[%clk 0:00:18.7]}
49... Kh7 {[%clk 0:00:06.9]} 50. g4 {[%clk 0:00:18.4]} 50... Rxh3 {[%clk
0:00:03.8]} 51. Rxa2 {[%clk 0:00:18.2]} 51... Rg3 {[%clk 0:00:03.4]} 52. g5
{[%clk 0:00:14.4]} 52... h5 {[%clk 0:00:03.9]} 53. Ke4 {[%clk 0:00:14]} 53... h4
{[%clk 0:00:02.2]} 54. Kf5 {[%clk 0:00:11.2]} 54... h3 {[%clk 0:00:01.8]} 55.
Rh2 {[%clk 0:00:11.1]} 55... g6+ {[%clk 0:00:02.2]} 56. Kf6 {[%clk 0:00:11.1]}
56... Rf3 {[%clk 0:00:01.5]} 57. Ke5 {[%clk 0:00:11.6]} 57... Kg7 {[%clk
0:00:01.9]} 58. Ra2 {[%clk 0:00:10.7]} 58... Rg3 {[%clk 0:00:01.5]} 59. Ra7+
{[%clk 0:00:10.2]} 59... Kg8 {[%clk 0:00:02]} 60. Ra8+ {[%clk 0:00:10.6]} 60...
Kg7 {[%clk 0:00:02.2]} 61. Ra7+ {[%clk 0:00:11.2]} 61... Kg8 {[%clk 0:00:02.8]}
62. Kf6 {[%clk 0:00:11.7]} 62... h2 {[%clk 0:00:03]} 63. Kxg6 {[%clk 0:00:11.1]}
63... Kf8 {[%clk 0:00:02.9]} 64. Ra8+ {[%clk 0:00:11.6]} 64... Ke7 {[%clk
0:00:02.9]} 65. Rh8 {[%clk 0:00:12.4]} 65... Rg2 {[%clk 0:00:01.9]} 66. f5
{[%clk 0:00:12.9]} 66... Kd6 {[%clk 0:00:02.2]} 67. f6 {[%clk 0:00:13.2]} 67...
Ke5 {[%clk 0:00:02.2]} 68. f7 {[%clk 0:00:13.6]} 1-0

[Event "Early-Titled-Tuesday-Blitz-January-16-2024"]
[Site "Chess.com"]
[Date "2024.01.16"]
[Round "7"]
[White "gabduschew"]
[Black "Lady_Nika"]
[Result "1-0"]
[WhiteElo "2455"]
[BlackElo "2581"]
[TimeControl "180+1"]
[EndTime "9:23:42 PST"]
[Termination "gabduschew won by resignation"]

1. b3 {[%clk 0:02:59.3]} 1... d5 {[%clk 0:02:57.8]} 2. Bb2 {[%clk 0:02:58.2]}
2... e6 {[%clk 0:02:57]} 3. e3 {[%clk 0:02:57.5]} 3... f5 {[%clk 0:02:57.2]} 4.
f4 {[%clk 0:02:55]} 4... Nf6 {[%clk 0:02:55.8]} 5. Nf3 {[%clk 0:02:55.4]} 5...
c6 {[%clk 0:02:54.7]} 6. Be2 {[%clk 0:02:54.5]} 6... Bd6 {[%clk 0:02:53.9]} 7.
O-O {[%clk 0:02:53.6]} 7... Nbd7 {[%clk 0:02:53.8]} 8. a4 {[%clk 0:02:51.8]}
8... O-O {[%clk 0:02:53.8]} 9. a5 {[%clk 0:02:51.4]} 9... a6 {[%clk 0:02:51.1]}
10. c4 {[%clk 0:02:49]} 10... Qe7 {[%clk 0:02:45.5]} 11. Ne5 {[%clk 0:02:45.3]}
11... Ne4 {[%clk 0:02:37.3]} 12. d3 {[%clk 0:02:42.3]} 12... Nef6 {[%clk
0:02:35.8]} 13. Nd2 {[%clk 0:02:39.3]} 13... Bc5 {[%clk 0:02:31.5]} 14. Bd4
{[%clk 0:02:30.9]} 14... Bxd4 {[%clk 0:02:29.7]} 15. exd4 {[%clk 0:02:30.5]}
15... Qd6 {[%clk 0:02:17.5]} 16. Ndf3 {[%clk 0:02:14.2]} 16... Ng4 {[%clk
0:02:01.2]} 17. Nxg4 {[%clk 0:02:05.7]} 17... fxg4 {[%clk 0:02:00.4]} 18. Ne5
{[%clk 0:02:05.7]} 18... h5 {[%clk 0:01:59.4]} 19. c5 {[%clk 0:02:00]} 19... Qc7
{[%clk 0:01:54.9]} 20. Qe1 {[%clk 0:01:52.7]} 20... Nxe5 {[%clk 0:01:54.2]} 21.
fxe5 {[%clk 0:01:44.8]} 21... Qe7 {[%clk 0:01:51.7]} 22. Rxf8+ {[%clk
0:01:41.5]} 22... Kxf8 {[%clk 0:01:51.8]} 23. Qg3 {[%clk 0:01:39.9]} 23... Kg8
{[%clk 0:01:50.1]} 24. h3 {[%clk 0:01:30]} 24... gxh3 {[%clk 0:01:43.5]} 25.
gxh3 {[%clk 0:01:29.7]} 25... h4 {[%clk 0:01:43.3]} 26. Qg6 {[%clk 0:01:26.6]}
26... Bd7 {[%clk 0:01:40.8]} 27. Bg4 {[%clk 0:01:22.3]} 27... Rf8 {[%clk
0:01:39.2]} 28. Ra2 {[%clk 0:01:06.4]} 28... Rf4 {[%clk 0:01:35.8]} 29. Ra4
{[%clk 0:00:44.7]} 29... Qf7 {[%clk 0:01:18]} 30. Qxf7+ {[%clk 0:00:43.6]} 30...
Kxf7 {[%clk 0:01:17.8]} 31. Rb4 {[%clk 0:00:40.8]} 31... Bc8 {[%clk 0:01:15.6]}
32. Kg2 {[%clk 0:00:39.4]} 32... Kg6 {[%clk 0:01:13.2]} 33. Bf3 {[%clk
0:00:26.1]} 33... Kf5 {[%clk 0:01:07]} 34. Kf2 {[%clk 0:00:25.4]} 34... g5
{[%clk 0:00:44.5]} 35. Ke3 {[%clk 0:00:25]} 35... Kg6 {[%clk 0:00:29.6]} 36. Ra4
{[%clk 0:00:17.7]} 36... Rf7 {[%clk 0:00:21.5]} 37. Ra1 {[%clk 0:00:16.7]} 37...
Bd7 {[%clk 0:00:16.7]} 38. Bg4 {[%clk 0:00:16.4]} 38... Rf4 {[%clk 0:00:15.7]}
39. Rg1 {[%clk 0:00:15.1]} 39... Kh6 {[%clk 0:00:15.1]} 40. Bf3 {[%clk
0:00:14.4]} 40... Be8 {[%clk 0:00:14.5]} 41. Ra1 {[%clk 0:00:12.1]} 41... Kg6
{[%clk 0:00:12.6]} 42. Ra4 {[%clk 0:00:11.6]} 42... Kf5 {[%clk 0:00:11.5]} 43.
Rb4 {[%clk 0:00:11.2]} 43... Rxf3+ {[%clk 0:00:02.7]} 44. Kxf3 {[%clk
0:00:10.9]} 44... Bh5+ {[%clk 0:00:03.6]} 45. Ke3 {[%clk 0:00:10.3]} 45... g4
{[%clk 0:00:04.5]} 46. hxg4+ {[%clk 0:00:10.2]} 46... Kxg4 {[%clk 0:00:05.4]}
47. Rxb7 {[%clk 0:00:07.5]} 47... h3 {[%clk 0:00:06.3]} 48. Rg7+ {[%clk
0:00:06.8]} 48... Kh4 {[%clk 0:00:05.5]} 49. Kf2 {[%clk 0:00:06.5]} 49... Bg4
{[%clk 0:00:05.2]} 50. Rh7+ {[%clk 0:00:06.1]} 50... Kg5 {[%clk 0:00:05.3]} 51.
Kg3 {[%clk 0:00:05.9]} 51... Bf5 {[%clk 0:00:05.8]} 52. Rg7+ {[%clk 0:00:05]}
52... Kh5 {[%clk 0:00:05.3]} 53. Ra7 {[%clk 0:00:05]} 53... Bxd3 {[%clk
0:00:05.1]} 54. Rc7 {[%clk 0:00:04.7]} 54... Bb5 {[%clk 0:00:05]} 55. Kxh3
{[%clk 0:00:04.9]} 55... Kg5 {[%clk 0:00:05.1]} 56. Kg3 {[%clk 0:00:04.6]} 56...
Kf5 {[%clk 0:00:05.4]} 57. Kf3 {[%clk 0:00:05]} 57... Bd3 {[%clk 0:00:05.4]} 58.
Ke3 {[%clk 0:00:05.2]} 58... Bb5 {[%clk 0:00:05.5]} 59. Re7 {[%clk 0:00:05.2]}
59... Bf1 {[%clk 0:00:04.8]} 60. Rf7+ {[%clk 0:00:05.4]} 1-0

[Event "Early-Titled-Tuesday-Blitz-January-16-2024"]
[Site "Chess.com"]
[Date "2024.01.16"]
[Round "7"]
[White "Mistango"]
[Black "temiksmozg"]
[Result "1/2-1/2"]
[WhiteElo "2489"]
[BlackElo "2618"]
[TimeControl "180+1"]
[EndTime "9:23:47 PST"]
[Termination "Game drawn by repetition"]

1. e4 {[%clk 0:02:58.6]} 1... c5 {[%clk 0:02:56.6]} 2. d4 {[%clk 0:02:56.1]}
2... cxd4 {[%clk 0:02:56.4]} 3. c3 {[%clk 0:02:56.9]} 3... dxc3 {[%clk
0:02:57.3]} 4. Nxc3 {[%clk 0:02:57.2]} 4... Nc6 {[%clk 0:02:52.5]} 5. Nf3 {[%clk
0:02:58.1]} 5... e6 {[%clk 0:02:52.5]} 6. Bc4 {[%clk 0:02:58.5]} 6... Bb4 {[%clk
0:02:52.5]} 7. O-O {[%clk 0:02:58.4]} 7... a6 {[%clk 0:02:52.4]} 8. Bg5 {[%clk
0:02:47.2]} 8... f6 {[%clk 0:02:51.7]} 9. Be3 {[%clk 0:02:46.8]} 9... Nge7
{[%clk 0:02:43.5]} 10. Bb3 {[%clk 0:02:44.9]} 10... Bxc3 {[%clk 0:02:42.9]} 11.
bxc3 {[%clk 0:02:44.3]} 11... O-O {[%clk 0:02:43.3]} 12. Nd4 {[%clk 0:02:40.6]}
12... Na5 {[%clk 0:02:38.9]} 13. Bc2 {[%clk 0:02:31]} 13... e5 {[%clk
0:02:32.8]} 14. Nb3 {[%clk 0:02:08.6]} 14... Nc4 {[%clk 0:02:29.7]} 15. Bc5
{[%clk 0:01:59.2]} 15... d6 {[%clk 0:02:28.5]} 16. Qe2 {[%clk 0:01:43.3]} 16...
Be6 {[%clk 0:02:27.4]} 17. Rad1 {[%clk 0:01:35.5]} 17... Qc7 {[%clk 0:02:22.5]}
18. Bd3 {[%clk 0:01:27.7]} 18... b5 {[%clk 0:02:18.2]} 19. Be3 {[%clk
0:01:21.7]} 19... Nxe3 {[%clk 0:02:16.1]} 20. Qxe3 {[%clk 0:01:18.9]} 20... Rfc8
{[%clk 0:02:07.1]} 21. Rc1 {[%clk 0:01:15.4]} 21... Nc6 {[%clk 0:01:55.8]} 22.
Rfd1 {[%clk 0:01:07.7]} 22... Na5 {[%clk 0:01:55.3]} 23. Nxa5 {[%clk 0:01:04.9]}
23... Qxa5 {[%clk 0:01:56.2]} 24. Bb1 {[%clk 0:01:04.8]} 24... Rc6 {[%clk
0:01:55.5]} 25. f4 {[%clk 0:01:01.8]} 25... Rac8 {[%clk 0:01:54.4]} 26. h3
{[%clk 0:00:53.2]} 26... Bxa2 {[%clk 0:01:49.5]} 27. Bxa2+ {[%clk 0:00:47.4]}
27... Qxa2 {[%clk 0:01:50.4]} 28. Rd3 {[%clk 0:00:44.1]} 28... Qe6 {[%clk
0:01:45.6]} 29. Rcd1 {[%clk 0:00:38.6]} 29... R8c7 {[%clk 0:01:42.3]} 30. Rd5
{[%clk 0:00:34]} 30... h6 {[%clk 0:01:31.5]} 31. f5 {[%clk 0:00:29.7]} 31... Qe7
{[%clk 0:01:27.9]} 32. R1d3 {[%clk 0:00:29.5]} 32... Rb7 {[%clk 0:01:27]} 33.
Qd2 {[%clk 0:00:28.9]} 33... a5 {[%clk 0:01:23.6]} 34. Rxd6 {[%clk 0:00:27.4]}
34... Rxd6 {[%clk 0:01:24.3]} 35. Rxd6 {[%clk 0:00:27.5]} 35... b4 {[%clk
0:01:24.2]} 36. cxb4 {[%clk 0:00:22.7]} 36... axb4 {[%clk 0:01:23.6]} 37. Rd8+
{[%clk 0:00:20.4]} 37... Kh7 {[%clk 0:01:22.9]} 38. Qd5 {[%clk 0:00:20.9]} 38...
Qf7 {[%clk 0:00:53.7]} 39. Qc6 {[%clk 0:00:17.2]} 39... b3 {[%clk 0:00:13.9]}
40. Qc8 {[%clk 0:00:15.8]} 40... g5 {[%clk 0:00:14.5]} 41. Kh2 {[%clk 0:00:13]}
41... b2 {[%clk 0:00:13.3]} 42. Rh8+ {[%clk 0:00:12.9]} 42... Kg7 {[%clk
0:00:13.4]} 43. Rg8+ {[%clk 0:00:13.1]} 43... Qxg8 {[%clk 0:00:11.1]} 44. Qxb7+
{[%clk 0:00:12.8]} 44... Qf7 {[%clk 0:00:11.5]} 45. Qxb2 {[%clk 0:00:13.7]}
45... Qc7 {[%clk 0:00:11.5]} 46. Qb5 {[%clk 0:00:12.6]} 46... h5 {[%clk
0:00:11.5]} 47. Qd5 {[%clk 0:00:11.5]} 47... Qf7 {[%clk 0:00:11.1]} 48. Qd6
{[%clk 0:00:11.4]} 48... Kh6 {[%clk 0:00:09.5]} 49. Qd8 {[%clk 0:00:11.4]} 49...
Qg7 {[%clk 0:00:09]} 50. Qe8 {[%clk 0:00:10.5]} 50... g4 {[%clk 0:00:09.2]} 51.
h4 {[%clk 0:00:08.9]} 51... g3+ {[%clk 0:00:04.6]} 52. Kg1 {[%clk 0:00:07.9]}
52... Kh7 {[%clk 0:00:03]} 53. Qxh5+ {[%clk 0:00:05.9]} 53... Qh6 {[%clk
0:00:03.3]} 54. Qf7+ {[%clk 0:00:03.8]} 54... Kh8 {[%clk 0:00:03.7]} 55. Qe8+
{[%clk 0:00:03.8]} 55... Kh7 {[%clk 0:00:04.2]} 56. Qe7+ {[%clk 0:00:04]} 56...
Kh8 {[%clk 0:00:04.7]} 57. Qe8+ {[%clk 0:00:04.3]} 57... Kh7 {[%clk 0:00:05]}
58. Qf7+ {[%clk 0:00:03.8]} 58... Qg7 {[%clk 0:00:04.9]} 59. Qh5+ {[%clk
0:00:03.7]} 59... Qh6 {[%clk 0:00:05.3]} 60. Qe8 {[%clk 0:00:03]} 60... Qxh4
{[%clk 0:00:04]} 61. Qf7+ {[%clk 0:00:01.4]} 61... Kh8 {[%clk 0:00:04.5]} 62.
Qf8+ {[%clk 0:00:01.8]} 62... Kh7 {[%clk 0:00:04.9]} 63. Qf7+ {[%clk 0:00:02]}
63... Kh8 {[%clk 0:00:05.5]} 64. Qf8+ {[%clk 0:00:02.4]} 64... Kh7 {[%clk
0:00:04.5]} 65. Qf7+ {[%clk 0:00:03.3]} 1/2-1/2